[Event "European Individual Women's Chess Championship 2017"]
[Site "Riga LAT"]
[Date "2017.04.21"]
[Round "10.17"]
[White "Ziaziulkina, Nastassia"]
[Black "Cramling, Pia"]
[Result "0-1"]
[LiveChessVersion "1.4.8"]
[BlackElo "2452"]
[WhiteElo "2387"]
[ECO "B41"]
[TimeControl "40/5400:1800+30"]

1. e4 {[%clk 1:30:52]} c5 {[%clk 1:30:52]} 2. Nf3 {[%clk 1:30:59]} e6
{[%clk 1:31:14]} 3. d4 {[%clk 1:30:41]} cxd4 {[%clk 1:31:37]} 4. Nxd4
{[%clk 1:31:09]} a6 {[%clk 1:31:58]} 5. c4 {[%clk 1:30:13]} Nf6 {[%clk 1:32:01]}
6. Nc3 {[%clk 1:30:34]} Bb4 {[%clk 1:32:18]} 7. Qd3 {[%clk 1:30:09]} Qc7
{[%clk 1:31:55]} 8. a3 {[%clk 1:29:22]} Bxc3+ {[%clk 1:31:21]} 9. Qxc3
{[%clk 1:29:44]} O-O {[%clk 1:30:57]} 10. Bd3 {[%clk 1:22:46]} d6
{[%clk 1:31:04]} 11. O-O {[%clk 1:21:34]} e5 {[%clk 1:27:40]} 12. Nc2
{[%clk 1:14:31]} Be6 {[%clk 1:26:55]} 13. Bg5 {[%clk 0:59:10]} Nbd7
{[%clk 1:26:40]} 14. Ne3 {[%clk 0:59:13]} h6 {[%clk 1:17:05]} 15. Bh4
{[%clk 0:58:23]} Rfc8 {[%clk 1:16:45]} 16. Qd2 {[%clk 0:50:41]} g5
{[%clk 0:58:52]} 17. Bg3 {[%clk 0:41:36]} Nc5 {[%clk 0:56:39]} 18. Qc2
{[%clk 0:40:59]} b5 {[%clk 0:50:48]} 19. cxb5 {[%clk 0:33:09]} axb5
{[%clk 0:50:01]} 20. Bxb5 {[%clk 0:33:35]} Nb3 {[%clk 0:35:53]} 21. Qxc7
{[%clk 0:32:09]} Rxc7 {[%clk 0:36:21]} 22. Rad1 {[%clk 0:32:34]} Nxe4
{[%clk 0:35:37]} 23. Nd5 {[%clk 0:28:51]} Rc5 {[%clk 0:30:15]} 24. Bc6
{[%clk 0:29:08]} Ra7 {[%clk 0:29:19]} 25. Ne7+ {[%clk 0:21:35]} Rxe7
{[%clk 0:29:13]} 26. Bxe4 {[%clk 0:22:02]} f5 {[%clk 0:27:48]} 27. Bb1
{[%clk 0:21:00]} f4 {[%clk 0:27:03]} 28. Rxd6 {[%clk 0:20:17]} fxg3
{[%clk 0:26:30]} 29. hxg3 {[%clk 0:20:37]} Kg7 {[%clk 0:18:32]} 30. f4
{[%clk 0:17:50]} Rd5 {[%clk 0:12:21]} 31. fxe5 {[%clk 0:13:08]} Rxe5
{[%clk 0:12:06]} 32. Bc2 {[%clk 0:11:13]} Na5 {[%clk 0:11:14]} 33. b4
{[%clk 0:09:15]} Nc4 {[%clk 0:11:20]} 34. Ra6 {[%clk 0:09:40]} Ne3
{[%clk 0:07:01]} 35. Re1 {[%clk 0:09:59]} Bc4 {[%clk 0:06:13]} 36. Ra5
{[%clk 0:08:50]} Rxa5 {[%clk 0:05:10]} 37. bxa5 {[%clk 0:09:17]} Kf6
{[%clk 0:05:33]} 38. Ba4 {[%clk 0:07:44]} Bd5 {[%clk 0:05:47]} 39. Re2
{[%clk 0:07:16]} Bc4 {[%clk 0:04:20]} 40. Re1 {[%clk 0:37:21]} Bd5
{[%clk 0:33:31]} 41. Re2 {[%clk 0:37:47]} Nc4 {[%clk 0:25:16]} 42. Rf2+
{[%clk 0:35:09]} Ke5 {[%clk 0:24:59]} 43. Bb3 {[%clk 0:34:34]} Rb7
{[%clk 0:23:42]} 44. Ba2 {[%clk 0:34:00]} Ra7 {[%clk 0:21:08]} 45. g4
{[%clk 0:28:27]} Ne3 {[%clk 0:20:09]} 46. Re2 {[%clk 0:28:21]} Bxa2
{[%clk 0:20:17]} 47. Rxe3+ Kf4 {[%clk 0:20:18]} 48. Re2 {[%clk 0:28:07]} Bd5
{[%clk 0:20:10]} 49. Rd2 {[%clk 0:27:54]} Rxa5 {[%clk 0:20:22]} 50. Rd4+
{[%clk 0:28:06]} Kg3 {[%clk 0:18:07]} 51. a4 {[%clk 0:28:06]} Rc5
{[%clk 0:18:29]} 52. Rd1 {[%clk 0:28:10]} Be4 {[%clk 0:18:29]} 53. Re1
{[%clk 0:28:19]} Bxg2 {[%clk 0:16:11]} 54. Re3+ {[%clk 0:28:37]} Bf3
{[%clk 0:16:35]} 0-1

[Event "European Individual Women's Chess Championship 2017"]
[Site "Riga LAT"]
[Date "2017.04.21"]
[Round "10.18"]
[White "Golubenko, Valentina"]
[Black "Zawadzka, Jolanta"]
[Result "1-0"]
[LiveChessVersion "1.4.8"]
[BlackElo "2449"]
[WhiteElo "2271"]
[ECO "E04"]
[TimeControl "40/5400:1800+30"]

1. d4 {[%clk 1:30:56]} d5 {[%clk 1:30:56]} 2. c4 {[%clk 1:31:19]} e6
{[%clk 1:31:21]} 3. Nf3 {[%clk 1:31:34]} Nf6 {[%clk 1:31:46]} 4. g3
{[%clk 1:31:27]} dxc4 {[%clk 1:32:10]} 5. Bg2 {[%clk 1:30:45]} a6
{[%clk 1:32:29]} 6. a4 {[%clk 1:28:28]} c5 {[%clk 1:24:09]} 7. Nbd2
{[%clk 1:07:06]} cxd4 {[%clk 1:19:16]} 8. Nxc4 {[%clk 1:06:48]} Nc6
{[%clk 1:19:38]} 9. O-O {[%clk 1:04:10]} Bc5 {[%clk 1:15:59]} 10. Qb3
{[%clk 1:00:20]} O-O {[%clk 1:12:52]} 11. Rd1 {[%clk 0:59:11]} Qe7
{[%clk 1:06:33]} 12. Bf4 {[%clk 0:58:39]} Nd7 {[%clk 0:58:05]} 13. Nfe5
{[%clk 0:50:23]} Ncxe5 {[%clk 0:37:07]} 14. Nxe5 {[%clk 0:49:48]} Rd8
{[%clk 0:30:58]} 15. Bxb7 {[%clk 0:37:18]} Bxb7 {[%clk 0:31:22]} 16. Qxb7
{[%clk 0:37:31]} Ra7 {[%clk 0:30:27]} 17. Qc6 {[%clk 0:31:06]} Nb8
{[%clk 0:25:57]} 18. Qe4 {[%clk 0:29:47]} Rb7 {[%clk 0:24:47]} 19. Rac1
{[%clk 0:25:35]} Ba7 {[%clk 0:24:18]} 20. Nc6 {[%clk 0:19:03]} Nxc6
{[%clk 0:24:43]} 21. Rxc6 {[%clk 0:19:29]} a5 {[%clk 0:18:38]} 22. Rdc1
{[%clk 0:18:44]} Rbd7 {[%clk 0:15:48]} 23. Bc7 {[%clk 0:16:20]} Re8
{[%clk 0:15:01]} 24. Bxa5 {[%clk 0:16:14]} d3 {[%clk 0:14:40]} 25. exd3
{[%clk 0:15:15]} Rd4 {[%clk 0:14:42]} 26. Rc7 {[%clk 0:12:31]} Qg5
{[%clk 0:04:06]} 27. Qc6 {[%clk 0:11:01]} Rf8 {[%clk 0:01:52]} 28. Rxa7
{[%clk 0:11:11]} Rxd3 {[%clk 0:02:13]} 29. Kg2 {[%clk 0:08:28]} h5
{[%clk 0:02:07]} 30. Ra8 {[%clk 0:07:55]} g6 {[%clk 0:00:57]} 31. Rxf8+
{[%clk 0:06:43]} Kxf8 {[%clk 0:01:26]} 32. Qc5+ {[%clk 0:05:55]} 1-0

[Event "European Individual Women's Chess Championship 2017"]
[Site "Riga LAT"]
[Date "2017.04.21"]
[Round "10.19"]
[White "Mkrtchian, Lilit"]
[Black "Lazarne Vajda, Szidonia"]
[Result "1/2-1/2"]
[LiveChessVersion "1.4.8"]
[BlackElo "2355"]
[WhiteElo "2425"]
[ECO "A34"]
[TimeControl "40/5400:1800+30"]

1. c4 {[%clk 1:30:52]} c5 {[%clk 1:30:37]} 2. Nf3 {[%clk 1:29:27]} Nf6
{[%clk 1:30:16]} 3. Nc3 {[%clk 1:29:41]} d5 {[%clk 1:29:54]} 4. cxd5
{[%clk 1:29:53]} Nxd5 {[%clk 1:30:15]} 5. e4 {[%clk 1:21:56]} Nb4
{[%clk 1:28:30]} 6. Bb5+ {[%clk 1:21:44]} Bd7 {[%clk 1:24:00]} 7. a3
{[%clk 1:20:54]} N4c6 {[%clk 1:21:30]} 8. d4 {[%clk 1:20:50]} cxd4
{[%clk 1:15:47]} 9. Nxd4 {[%clk 1:21:16]} e6 {[%clk 1:14:06]} 10. O-O
{[%clk 1:13:58]} a6 {[%clk 1:05:02]} 11. Ba4 {[%clk 1:12:37]} Nxd4
{[%clk 1:01:44]} 12. Qxd4 {[%clk 1:13:02]} b5 {[%clk 0:59:22]} 13. Bb3
{[%clk 1:10:43]} Nc6 {[%clk 0:58:24]} 14. Qd3 {[%clk 1:07:30]} Qc7
{[%clk 0:54:49]} 15. Rd1 {[%clk 0:35:56]} Rd8 {[%clk 0:52:14]} 16. Bg5
{[%clk 0:33:45]} Be7 {[%clk 0:50:07]} 17. Bxe7 {[%clk 0:33:54]} Nxe7
{[%clk 0:49:44]} 18. Qd6 {[%clk 0:26:52]} Qxd6 {[%clk 0:46:50]} 19. Rxd6
{[%clk 0:27:19]} Bc6 {[%clk 0:47:05]} 20. Rad1 {[%clk 0:27:20]} Rxd6
{[%clk 0:46:54]} 21. Rxd6 {[%clk 0:27:44]} O-O {[%clk 0:47:10]} 22. f3
{[%clk 0:28:03]} a5 {[%clk 0:37:52]} 23. Ne2 {[%clk 0:25:33]} Rb8
{[%clk 0:36:57]} 24. Nd4 {[%clk 0:16:09]} Be8 {[%clk 0:37:18]} 25. Bd1
{[%clk 0:15:45]} g6 {[%clk 0:31:05]} 26. Kf2 {[%clk 0:15:00]} Kf8
{[%clk 0:29:30]} 27. Ke3 {[%clk 0:15:03]} a4 {[%clk 0:25:39]} 28. Ra6
{[%clk 0:06:11]} e5 {[%clk 0:20:14]} 29. Ne2 {[%clk 0:06:27]} Nc8
{[%clk 0:16:26]} 30. Nc3 {[%clk 0:06:03]} Nb6 {[%clk 0:16:30]} 31. Be2
{[%clk 0:06:26]} Nc4+ {[%clk 0:16:24]} 32. Bxc4 {[%clk 0:04:58]} bxc4
{[%clk 0:16:49]} 33. Nd1 {[%clk 0:04:09]} c3 {[%clk 0:13:22]} 34. Nxc3
{[%clk 0:04:03]} Rxb2 {[%clk 0:13:25]} 35. Ra8 {[%clk 0:03:59]} Rb3
{[%clk 0:09:47]} 36. Kd2 {[%clk 0:02:34]} Rxa3 {[%clk 0:09:59]} 37. Nd5
{[%clk 0:02:19]} Ra2+ {[%clk 0:09:59]} 38. Kd3 {[%clk 0:01:47]} Rxg2
{[%clk 0:08:54]} 39. Nc7 {[%clk 0:02:00]} Ke7 {[%clk 0:06:37]} 40. Nxe8
{[%clk 0:32:17]} Rf2 {[%clk 0:34:23]} 41. Nc7 {[%clk 0:27:55]} Rxf3+
{[%clk 0:33:55]} 42. Kc4 {[%clk 0:27:13]} Kf6 {[%clk 0:24:31]} 43. Rxa4
{[%clk 0:25:35]} Rf2 {[%clk 0:24:41]} 44. Ra7 {[%clk 0:21:46]} Kg5
{[%clk 0:22:39]} 45. Kd5 {[%clk 0:18:26]} Rxh2 {[%clk 0:20:38]} 46. Kxe5
{[%clk 0:18:33]} h5 {[%clk 0:20:23]} 47. Nd5 {[%clk 0:15:04]} Rf2
{[%clk 0:11:56]} 48. Kd4 {[%clk 0:15:09]} Rf1 {[%clk 0:11:34]} 49. Ke3
{[%clk 0:06:46]} Re1+ {[%clk 0:11:07]} 50. Kf3 {[%clk 0:04:59]} f5
{[%clk 0:10:52]} 51. exf5 {[%clk 0:05:15]} Rf1+ {[%clk 0:10:40]} 52. Kg2
{[%clk 0:05:36]} Rxf5 {[%clk 0:11:05]} 1/2-1/2

[Event "European Individual Women's Chess Championship 2017"]
[Site "Riga LAT"]
[Date "2017.04.21"]
[Round "10.20"]
[White "Fataliyeva, Ulviyya"]
[Black "Szczepkowska, Karina"]
[Result "0-1"]
[LiveChessVersion "1.4.8"]
[BlackElo "2414"]
[WhiteElo "2287"]
[ECO "C45"]
[TimeControl "40/5400:1800+30"]

1. e4 {[%clk 1:30:58]} e5 {[%clk 1:30:50]} 2. Nf3 {[%clk 1:31:26]} Nc6
{[%clk 1:31:14]} 3. d4 {[%clk 1:31:54]} exd4 {[%clk 1:31:38]} 4. Nxd4
{[%clk 1:32:22]} Bc5 {[%clk 1:32:02]} 5. Nxc6 {[%clk 1:32:47]} Qf6
{[%clk 1:32:28]} 6. Qd2 {[%clk 1:33:09]} dxc6 {[%clk 1:31:42]} 7. Nc3
{[%clk 1:33:37]} Bd4 {[%clk 1:30:52]} 8. Bd3 {[%clk 1:32:05]} Bd7
{[%clk 1:23:22]} 9. O-O {[%clk 1:29:03]} Ne7 {[%clk 1:17:00]} 10. Kh1
{[%clk 1:24:58]} Ng6 {[%clk 1:10:26]} 11. f4 {[%clk 1:17:31]} O-O-O
{[%clk 1:03:45]} 12. Qe1 {[%clk 1:13:20]} Kb8 {[%clk 0:55:30]} 13. Ne2
{[%clk 1:09:43]} Bb6 {[%clk 0:54:34]} 14. a4 {[%clk 1:07:44]} a6 {[%clk 0:49:08]}
15. Bd2 {[%clk 1:06:04]} Qe7 {[%clk 0:47:52]} 16. Ra3 {[%clk 1:00:52]} Nf8
{[%clk 0:44:35]} 17. f5 {[%clk 0:53:39]} Bc8 {[%clk 0:41:23]} 18. Qg3
{[%clk 0:47:40]} f6 {[%clk 0:34:37]} 19. b4 {[%clk 0:38:56]} Nd7 {[%clk 0:33:30]}
20. c4 {[%clk 0:31:19]} a5 {[%clk 0:30:30]} 21. c5 {[%clk 0:19:05]} Ba7
{[%clk 0:30:51]} 22. Rc1 {[%clk 0:16:11]} Ne5 {[%clk 0:26:39]} 23. Qe3
{[%clk 0:10:26]} Qd7 {[%clk 0:24:14]} 24. Nf4 {[%clk 0:04:24]} g5
{[%clk 0:24:39]} 25. Ne6 {[%clk 0:03:35]} Nxd3 {[%clk 0:24:21]} 26. Nxd8
{[%clk 0:01:06]} Rxd8 {[%clk 0:23:49]} 27. Rf1 {[%clk 0:00:39]} axb4
{[%clk 0:21:37]} 28. Bxb4 {[%clk 0:00:38]} Nxb4 {[%clk 0:22:01]} 29. Rb3
{[%clk 0:01:05]} Nd3 {[%clk 0:20:58]} 0-1

[Event "European Individual Women's Chess Championship 2017"]
[Site "Riga LAT"]
[Date "2017.04.21"]
[Round "10.21"]
[White "Vega Gutierrez, Sabrina"]
[Black "Yildiz, Betul Cemre"]
[Result "1-0"]
[LiveChessVersion "1.4.8"]
[BlackElo "2367"]
[WhiteElo "2413"]
[ECO "C44"]
[TimeControl "40/5400:1800+30"]

1. e4 {[%clk 1:30:54]} e5 {[%clk 1:30:54]} 2. Nf3 {[%clk 1:31:12]} Nc6
{[%clk 1:31:18]} 3. d4 {[%clk 1:31:33]} exd4 {[%clk 1:31:41]} 4. Nxd4
{[%clk 1:31:55]} Nf6 {[%clk 1:32:05]} 5. Nxc6 {[%clk 1:32:09]} bxc6
{[%clk 1:32:28]} 6. Qe2 {[%clk 1:32:19]} Qe7 {[%clk 1:28:46]} 7. Nc3
{[%clk 1:32:13]} Bb7 {[%clk 1:22:52]} 8. f3 {[%clk 1:07:21]} d6 {[%clk 1:15:30]}
9. Be3 {[%clk 1:02:03]} g6 {[%clk 1:13:14]} 10. O-O-O {[%clk 0:59:26]} Bg7
{[%clk 1:12:06]} 11. g4 {[%clk 0:55:46]} Nd7 {[%clk 1:08:23]} 12. Qd2
{[%clk 0:50:17]} Nb6 {[%clk 1:02:45]} 13. h4 {[%clk 0:46:07]} h5 {[%clk 0:54:02]}
14. Bd4 {[%clk 0:44:38]} Bxd4 {[%clk 0:50:15]} 15. Qxd4 {[%clk 0:45:06]} O-O-O
{[%clk 0:50:30]} 16. g5 {[%clk 0:40:50]} c5 {[%clk 0:41:21]} 17. Qd2
{[%clk 0:37:41]} Kb8 {[%clk 0:39:23]} 18. Nd5 {[%clk 0:22:37]} Nxd5
{[%clk 0:28:58]} 19. exd5 {[%clk 0:23:04]} Qd7 {[%clk 0:28:57]} 20. Qa5
{[%clk 0:17:14]} c6 {[%clk 0:25:06]} 21. Bc4 {[%clk 0:16:39]} Qf5
{[%clk 0:22:22]} 22. dxc6 {[%clk 0:16:59]} Bxc6 {[%clk 0:20:10]} 23. Kb1
{[%clk 0:17:27]} Rd7 {[%clk 0:13:07]} 24. Bb5 {[%clk 0:11:39]} Bxb5
{[%clk 0:09:03]} 25. Qxb5+ {[%clk 0:12:07]} Rb7 {[%clk 0:09:25]} 26. Qe2
{[%clk 0:07:42]} Qf4 {[%clk 0:06:17]} 27. Rd5 {[%clk 0:07:14]} Ka8
{[%clk 0:04:00]} 28. b3 {[%clk 0:05:03]} c4 {[%clk 0:02:09]} 29. Qd1
{[%clk 0:03:31]} cxb3 {[%clk 0:02:05]} 30. axb3 {[%clk 0:03:59]} Rb6
{[%clk 0:01:33]} 31. Re1 {[%clk 0:02:45]} Qb4 {[%clk 0:00:42]} 32. Re3
{[%clk 0:00:33]} Rhb8 {[%clk 0:00:55]} 33. Qd4 {[%clk 0:00:34]} Qa3
{[%clk 0:00:43]} 34. Qe4 {[%clk 0:00:34]} R8b7 {[%clk 0:00:55]} 35. Qe8+
{[%clk 0:01:01]} Rb8 {[%clk 0:01:20]} 36. Qe4 {[%clk 0:01:28]} R8b7
{[%clk 0:01:46]} 37. Rc3 {[%clk 0:00:42]} a6 {[%clk 0:01:18]} 38. Rc8+
{[%clk 0:00:39]} Ka7 {[%clk 0:01:46]} 39. Qd4 {[%clk 0:00:55]} Re7
{[%clk 0:00:44]} 40. Qf2 {[%clk 0:30:38]} Qb4 {[%clk 0:30:36]} 41. Kb2
{[%clk 0:23:50]} Kb7 {[%clk 0:25:55]} 42. Rc3 {[%clk 0:23:11]} Rc6
{[%clk 0:16:17]} 43. Rxc6 {[%clk 0:22:19]} Kxc6 {[%clk 0:16:44]} 44. Rd4
{[%clk 0:22:32]} Qa5 {[%clk 0:16:45]} 45. f4 {[%clk 0:17:22]} d5 {[%clk 0:10:48]}
46. f5 {[%clk 0:14:12]} Qe1 {[%clk 0:07:21]} 47. Qf3 {[%clk 0:14:08]} Re4
{[%clk 0:05:20]} 48. fxg6 {[%clk 0:13:25]} fxg6 {[%clk 0:05:36]} 49. Rd3
{[%clk 0:11:42]} Kd6 {[%clk 0:03:27]} 50. Qf6+ {[%clk 0:09:34]} Re6
{[%clk 0:02:14]} 51. Qd8+ {[%clk 0:10:00]} Kc6 {[%clk 0:02:18]} 52. Rc3+
{[%clk 0:09:36]} 1-0

[Event "European Individual Women's Chess Championship 2017"]
[Site "Riga LAT"]
[Date "2017.04.21"]
[Round "10.22"]
[White "Mamedjarova, Zeinab"]
[Black "Atalik, Ekaterina"]
[Result "1/2-1/2"]
[LiveChessVersion "1.4.8"]
[BlackElo "2429"]
[WhiteElo "2322"]
[ECO "A46"]
[TimeControl "40/5400:1800+30"]

1. d4 {[%clk 1:30:57]} Nf6 {[%clk 1:30:48]} 2. Nf3 {[%clk 1:31:19]} e6
{[%clk 1:31:01]} 3. e3 {[%clk 1:31:35]} b6 {[%clk 1:30:53]} 4. Bd3
{[%clk 1:31:43]} Bb7 {[%clk 1:31:06]} 5. Nbd2 {[%clk 1:32:07]} d5
{[%clk 1:31:00]} 6. O-O {[%clk 1:31:49]} Bd6 {[%clk 1:31:16]} 7. Re1
{[%clk 1:31:07]} O-O {[%clk 1:28:15]} 8. e4 {[%clk 1:25:10]} dxe4
{[%clk 1:28:07]} 9. Nxe4 {[%clk 1:25:35]} Nxe4 {[%clk 1:27:42]} 10. Bxe4
{[%clk 1:26:01]} Bxe4 {[%clk 1:27:52]} 11. Rxe4 {[%clk 1:26:28]} Nd7
{[%clk 1:27:46]} 12. c4 {[%clk 1:21:09]} Re8 {[%clk 1:25:52]} 13. b3
{[%clk 1:18:23]} Nf6 {[%clk 1:24:16]} 14. Re2 {[%clk 1:14:55]} e5
{[%clk 1:19:50]} 15. Bb2 {[%clk 1:10:05]} e4 {[%clk 1:19:01]} 16. Nd2
{[%clk 1:06:47]} Ng4 {[%clk 1:13:06]} 17. h3 {[%clk 0:37:48]} Bh2+
{[%clk 1:03:24]} 18. Kh1 {[%clk 0:34:36]} Bf4 {[%clk 0:58:48]} 19. Qf1
{[%clk 0:25:57]} Bxd2 {[%clk 0:53:54]} 20. Rxd2 {[%clk 0:25:22]} Qd6
{[%clk 0:54:03]} 21. g3 {[%clk 0:21:53]} Ne5 {[%clk 0:48:39]} 22. d5
{[%clk 0:17:30]} Nd3 {[%clk 0:47:47]} 23. Bc3 {[%clk 0:15:39]} c6
{[%clk 0:45:10]} 24. dxc6 {[%clk 0:15:52]} Qxc6 {[%clk 0:45:34]} 25. f3
{[%clk 0:09:54]} f5 {[%clk 0:43:44]} 26. g4 {[%clk 0:03:20]} fxg4
{[%clk 0:32:27]} 27. Rg2 {[%clk 0:03:08]} exf3 {[%clk 0:28:58]} 28. Rxg4
{[%clk 0:03:34]} Ne5 {[%clk 0:25:54]} 29. Rg3 {[%clk 0:03:41]} Rad8
{[%clk 0:13:33]} 30. Bxe5 {[%clk 0:03:12]} Rxe5 {[%clk 0:13:59]} 31. Qxf3
{[%clk 0:03:31]} Qxf3+ {[%clk 0:13:48]} 32. Rxf3 {[%clk 0:03:59]} Re2
{[%clk 0:14:00]} 33. a4 {[%clk 0:02:03]} a5 {[%clk 0:14:08]} 34. Rc1
{[%clk 0:01:44]} Rdd2 {[%clk 0:13:23]} 35. Kg1 {[%clk 0:01:22]} Rg2+
{[%clk 0:11:55]} 36. Kf1 {[%clk 0:01:12]} Rh2 {[%clk 0:12:04]} 37. Kg1
{[%clk 0:01:23]} Rdg2+ {[%clk 0:11:55]} 38. Kf1 {[%clk 0:01:52]} h5
{[%clk 0:09:38]} 39. c5 {[%clk 0:01:28]} Rg6 {[%clk 0:06:43]} 40. Rcc3
{[%clk 0:30:47]} Rh1+ {[%clk 0:31:48]} 1/2-1/2

[Event "European Individual Women's Chess Championship 2017"]
[Site "Riga LAT"]
[Date "2017.04.21"]
[Round "10.23"]
[White "Skripchenko, Almira"]
[Black "Gvetadze, Sofio"]
[Result "0-1"]
[LiveChessVersion "1.4.8"]
[BlackElo "2292"]
[WhiteElo "2420"]
[ECO "B25"]
[TimeControl "40/5400:1800+30"]

1. e4 {[%clk 1:30:50]} c5 {[%clk 1:30:50]} 2. Nc3 {[%clk 1:30:52]} Nc6
{[%clk 1:30:51]} 3. g3 {[%clk 1:28:55]} g6 {[%clk 1:31:08]} 4. Bg2
{[%clk 1:29:21]} Bg7 {[%clk 1:31:34]} 5. d3 {[%clk 1:29:46]} d6 {[%clk 1:31:40]}
6. Nh3 {[%clk 1:21:20]} Nf6 {[%clk 1:31:44]} 7. O-O {[%clk 1:21:28]} Nd4
{[%clk 1:30:47]} 8. Nf4 {[%clk 1:17:55]} O-O {[%clk 1:28:18]} 9. h3
{[%clk 1:16:40]} Rb8 {[%clk 1:27:27]} 10. a4 {[%clk 1:06:35]} a6 {[%clk 1:27:09]}
11. Nfd5 {[%clk 0:56:56]} Ne8 {[%clk 1:22:24]} 12. Bg5 {[%clk 0:51:49]} f6
{[%clk 1:22:22]} 13. Bd2 {[%clk 0:51:31]} e6 {[%clk 1:20:16]} 14. Ne3
{[%clk 0:51:33]} f5 {[%clk 1:19:38]} 15. a5 {[%clk 0:48:12]} f4 {[%clk 1:03:53]}
16. gxf4 {[%clk 0:46:42]} Nf6 {[%clk 1:04:10]} 17. f5 {[%clk 0:38:29]} exf5
{[%clk 0:56:08]} 18. f4 {[%clk 0:38:15]} Nh5 {[%clk 0:56:01]} 19. Ncd5
{[%clk 0:32:10]} Ng3 {[%clk 0:48:52]} 20. Rf2 {[%clk 0:31:39]} fxe4
{[%clk 0:48:38]} 21. dxe4 {[%clk 0:32:05]} Qh4 {[%clk 0:41:09]} 22. c3
{[%clk 0:30:10]} Ne6 {[%clk 0:29:24]} 23. Qg4 {[%clk 0:27:59]} Qxg4
{[%clk 0:27:12]} 24. hxg4 {[%clk 0:26:16]} Nxf4 {[%clk 0:27:04]} 25. Nxf4
{[%clk 0:24:44]} Rxf4 {[%clk 0:27:31]} 26. Re1 {[%clk 0:20:42]} Be5
{[%clk 0:20:44]} 27. Nc4 {[%clk 0:15:11]} Rxg4 {[%clk 0:20:48]} 28. Nxe5
{[%clk 0:15:36]} dxe5 {[%clk 0:21:11]} 29. Bh6 {[%clk 0:15:19]} Bd7
{[%clk 0:18:51]} 30. Rd1 {[%clk 0:14:51]} Ba4 {[%clk 0:15:31]} 31. b3
{[%clk 0:14:39]} Bc6 {[%clk 0:04:55]} 32. Bh3 {[%clk 0:10:27]} Rh4
{[%clk 0:05:13]} 33. Be6+ {[%clk 0:10:15]} Kh8 {[%clk 0:05:42]} 34. Bg5
{[%clk 0:10:40]} Rh1+ {[%clk 0:05:59]} 35. Kg2 {[%clk 0:10:53]} Nxe4
{[%clk 0:06:19]} 36. Kxh1 {[%clk 0:08:54]} Nxf2+ {[%clk 0:06:00]} 37. Kg1
{[%clk 0:05:07]} Ne4 {[%clk 0:06:24]} 38. Bh6 {[%clk 0:05:31]} Nxc3
{[%clk 0:05:48]} 39. Re1 {[%clk 0:03:52]} Re8 {[%clk 0:01:24]} 40. Bf7
{[%clk 0:31:42]} Re7 {[%clk 0:31:27]} 41. Bc4 {[%clk 0:31:57]} Bd5
{[%clk 0:24:45]} 42. Bf1 {[%clk 0:16:02]} Kg8 {[%clk 0:13:56]} 43. Rc1
{[%clk 0:14:06]} Ne4 {[%clk 0:11:13]} 44. Rd1 {[%clk 0:12:30]} Bxb3
{[%clk 0:07:28]} 45. Rd8+ {[%clk 0:12:54]} Kf7 {[%clk 0:07:57]} 46. Rf8+
{[%clk 0:08:41]} Ke6 {[%clk 0:08:24]} 47. Bh3+ {[%clk 0:09:06]} Kd5
{[%clk 0:08:32]} 48. Bg2 {[%clk 0:07:27]} Kd4 {[%clk 0:05:56]} 49. Rf3
{[%clk 0:07:00]} Bc2 {[%clk 0:04:14]} 50. Be3+ {[%clk 0:05:16]} Kc4
{[%clk 0:04:28]} 51. Rh3 {[%clk 0:02:59]} Kb5 {[%clk 0:03:40]} 52. Rh4
{[%clk 0:03:01]} Nd6 {[%clk 0:03:32]} 53. Bf1+ {[%clk 0:02:11]} c4
{[%clk 0:03:42]} 54. Bb6 {[%clk 0:02:20]} Bd3 {[%clk 0:03:46]} 0-1

[Event "European Individual Women's Chess Championship 2017"]
[Site "Riga LAT"]
[Date "2017.04.21"]
[Round "10.24"]
[White "Melia, Salome"]
[Black "Travkina, Anastasia"]
[Result "1-0"]
[LiveChessVersion "1.4.8"]
[BlackElo "2287"]
[WhiteElo "2400"]
[ECO "B94"]
[TimeControl "40/5400:1800+30"]

1. e4 {[%clk 1:30:56]} c5 {[%clk 1:30:57]} 2. Nf3 {[%clk 1:31:19]} d6
{[%clk 1:31:23]} 3. d4 {[%clk 1:31:21]} Nf6 {[%clk 1:31:46]} 4. Nc3
{[%clk 1:31:41]} cxd4 {[%clk 1:32:11]} 5. Nxd4 {[%clk 1:32:06]} a6
{[%clk 1:32:37]} 6. Bg5 {[%clk 1:31:24]} Nbd7 {[%clk 1:32:32]} 7. Qe2
{[%clk 1:31:36]} h6 {[%clk 1:31:56]} 8. Bh4 {[%clk 1:28:03]} g6 {[%clk 1:30:16]}
9. O-O-O {[%clk 1:24:51]} Bg7 {[%clk 1:29:22]} 10. f4 {[%clk 1:24:53]} Qc7
{[%clk 1:24:30]} 11. Kb1 {[%clk 1:15:27]} O-O {[%clk 1:13:39]} 12. Nf3 e5
{[%clk 1:04:52]} 13. f5 {[%clk 1:08:22]} b5 {[%clk 0:50:55]} 14. g4
{[%clk 1:06:36]} b4 {[%clk 0:46:25]} 15. Nd5 {[%clk 1:06:34]} Nxd5
{[%clk 0:46:43]} 16. exd5 {[%clk 1:06:21]} a5 {[%clk 0:37:53]} 17. g5
{[%clk 1:01:50]} e4 {[%clk 0:31:20]} 18. Nd4 {[%clk 0:56:54]} hxg5
{[%clk 0:21:28]} 19. Bxg5 {[%clk 0:54:44]} a4 {[%clk 0:20:07]} 20. fxg6
{[%clk 0:49:11]} Ne5 {[%clk 0:20:31]} 21. gxf7+ {[%clk 0:46:13]} Qxf7
{[%clk 0:15:33]} 22. Rg1 {[%clk 0:30:59]} Nf3 {[%clk 0:15:38]} 23. Nxf3
{[%clk 0:31:08]} exf3 {[%clk 0:15:57]} 24. Qf2 {[%clk 0:29:51]} Qh5
{[%clk 0:12:32]} 25. Be7 {[%clk 0:22:14]} Rf7 {[%clk 0:09:20]} 26. Bxd6
{[%clk 0:22:08]} b3 {[%clk 0:07:19]} 27. Bd3 {[%clk 0:08:43]} a3 {[%clk 0:06:53]}
28. cxb3 {[%clk 0:08:12]} axb2 {[%clk 0:07:16]} 29. Rg3 {[%clk 0:03:47]} Bf5
{[%clk 0:06:37]} 30. Qxf3 {[%clk 0:02:22]} Bxd3+ {[%clk 0:06:03]} 31. Qxd3
{[%clk 0:02:41]} Rd8 {[%clk 0:06:31]} 32. Ba3 {[%clk 0:01:33]} Qe5
{[%clk 0:02:08]} 33. d6 {[%clk 0:00:40]} Rc8 {[%clk 0:02:15]} 34. Rxg7+
{[%clk 0:00:44]} Qxg7 {[%clk 0:01:35]} 35. Bxb2 {[%clk 0:01:05]} Qg2
{[%clk 0:00:43]} 36. Qd4 {[%clk 0:00:35]} Rf6 {[%clk 0:00:38]} 37. d7
{[%clk 0:00:41]} Qc2+ {[%clk 0:00:54]} 38. Ka1 {[%clk 0:01:09]} Rd8
{[%clk 0:00:37]} 39. Rc1 {[%clk 0:00:40]} 1-0